[Event "*** Titled Tuesday 3|2 Blitz"]
[Site "Chess.com"]
[Date "2015.05.05"]
[Round "5"]
[White "jefferyx"]
[Black "GMHess"]
[Result "0-1"]
[WhiteElo "2322"]
[BlackElo "2524"]
[TimeControl "180+2"]
[EndTime "12:08:31 PDT"]
[Termination "GMHess won by resignation"]

1. b4 {[%clk 0:03:01.9]} 1... e6 {[%clk 0:03:00.1]} 2. Bb2 {[%clk 0:03:03.1]}
2... Nf6 {[%clk 0:03:01.6]} 3. a3 {[%clk 0:03:04.7]} 3... d5 {[%clk 0:03:02.4]}
4. e3 {[%clk 0:03:06.3]} 4... Be7 {[%clk 0:03:03.1]} 5. g4 {[%clk 0:03:07.7]}
5... O-O {[%clk 0:02:59.4]} 6. g5 {[%clk 0:03:09.2]} 6... Ne4 {[%clk 0:03:00.3]}
7. h4 {[%clk 0:03:10.7]} 7... f6 {[%clk 0:03:01.2]} 8. d3 {[%clk 0:03:11.4]}
8... Nd6 {[%clk 0:03:00.8]} 9. Nh3 {[%clk 0:03:12.8]} 9... e5 {[%clk 0:03:00.8]}
10. Nd2 {[%clk 0:03:13.1]} 10... a5 {[%clk 0:03:00.9]} 11. Rg1 {[%clk
0:03:12.4]} 11... axb4 {[%clk 0:03:00.9]} 12. axb4 {[%clk 0:03:13.8]} 12... Rxa1
{[%clk 0:02:59.2]} 13. Qxa1 {[%clk 0:03:15.7]} 13... Nc6 {[%clk 0:02:59]} 14.
Kd1 {[%clk 0:02:59.4]} 14... Be6 {[%clk 0:02:38.8]} 15. f4 {[%clk 0:02:58.9]}
15... Nf5 {[%clk 0:02:06.8]} 16. gxf6 {[%clk 0:02:35.7]} 16... Bxf6 {[%clk
0:02:08.7]} 17. b5 {[%clk 0:02:17.7]} 17... Nxe3+ {[%clk 0:02:02.7]} 18. Kc1
{[%clk 0:02:18.8]} 18... Nxf1 {[%clk 0:01:59.1]} 19. Nxf1 {[%clk 0:02:03.4]}
19... Nd4 {[%clk 0:01:38.1]} 20. Ng5 {[%clk 0:01:56.4]} 20... Bd7 {[%clk
0:01:01.6]} 21. Kb1 {[%clk 0:01:48.5]} 21... c5 {[%clk 0:00:49.3]} 22. bxc6
{[%clk 0:01:46.2]} 22... bxc6 {[%clk 0:00:48.8]} 23. fxe5 {[%clk 0:01:44.6]}
23... Bxg5 {[%clk 0:00:43.6]} 24. Bxd4 {[%clk 0:01:45.9]} 24... Qb8+ {[%clk
0:00:43.4]} 25. Qb2 {[%clk 0:01:47.2]} 25... Bh6 {[%clk 0:00:35.4]} 26. e6
{[%clk 0:01:45.7]} 26... Qxb2+ {[%clk 0:00:34.5]} 27. Kxb2 {[%clk 0:01:42.4]}
27... Bxe6 {[%clk 0:00:36.4]} 28. Ne3 {[%clk 0:01:43.7]} 28... Rf4 {[%clk
0:00:34.2]} 29. Kc3 {[%clk 0:01:29.9]} 29... Rxh4 {[%clk 0:00:30.5]} 30. Rb1
{[%clk 0:01:31.6]} 30... Bxe3 {[%clk 0:00:20.4]} 31. Bxe3 {[%clk 0:01:32.5]}
31... Rg4 {[%clk 0:00:19.8]} 32. Rb6 {[%clk 0:01:32.5]} 32... Bd7 {[%clk
0:00:17.9]} 33. Rb7 {[%clk 0:01:34.1]} 33... Be8 {[%clk 0:00:17.6]} 34. Re7
{[%clk 0:01:35.4]} 34... Bf7 {[%clk 0:00:11.2]} 35. Rc7 {[%clk 0:01:36.7]} 35...
h5 {[%clk 0:00:10.1]} 36. Rxc6 {[%clk 0:01:37.8]} 36... h4 {[%clk 0:00:10.4]}
37. Rb6 {[%clk 0:01:17.9]} 37... h3 {[%clk 0:00:10.9]} 38. Rb1 {[%clk
0:01:19.1]} 38... Rg3 {[%clk 0:00:08.4]} 39. Kd4 {[%clk 0:01:20.3]} 39... g5
{[%clk 0:00:08]} 40. Rh1 {[%clk 0:01:20.1]} 40... g4 {[%clk 0:00:09]} 41. Bf4
{[%clk 0:01:18.3]} 41... Rg2 {[%clk 0:00:09.7]} 42. c3 {[%clk 0:01:19.9]} 42...
Bg6 {[%clk 0:00:08.1]} 43. Ke3 {[%clk 0:01:20.4]} 43... Bf5 {[%clk 0:00:07.1]}
44. Rf1 {[%clk 0:01:07.9]} 44... Kh7 {[%clk 0:00:07]} 45. Be5 {[%clk 0:01:07.4]}
45... Kg6 {[%clk 0:00:08.5]} 46. c4 {[%clk 0:01:00.5]} 46... dxc4 {[%clk
0:00:09.2]} 47. dxc4 {[%clk 0:01:02.4]} 47... Rc2 {[%clk 0:00:10.2]} 48. Kd4
{[%clk 0:00:57.4]} 48... Rd2+ {[%clk 0:00:08.7]} 49. Ke3 {[%clk 0:00:54.1]}
49... Rd3+ {[%clk 0:00:07.5]} 50. Ke2 {[%clk 0:00:55.7]} 50... Rb3 {[%clk
0:00:06.3]} 51. Kf2 {[%clk 0:00:42]} 51... Kh5 {[%clk 0:00:04.5]} 52. Rc1 {[%clk
0:00:39.4]} 52... Be4 {[%clk 0:00:05.5]} 53. c5 {[%clk 0:00:39.5]} 53... g3+
{[%clk 0:00:05.9]} 54. Bxg3 {[%clk 0:00:22.8]} 54... Rf3+ {[%clk 0:00:07.4]} 55.
Kg1 {[%clk 0:00:24.7]} 55... Rxg3+ {[%clk 0:00:09.2]} 56. Kh2 {[%clk 0:00:26.6]}
56... Rb3 {[%clk 0:00:07.3]} 57. c6 {[%clk 0:00:27.6]} 57... Bf5 {[%clk
0:00:08.4]} 58. c7 {[%clk 0:00:22.1]} 58... Rb2+ {[%clk 0:00:08.5]} 59. Kg3
{[%clk 0:00:22.7]} 59... Rg2+ {[%clk 0:00:08.4]} 60. Kf3 {[%clk 0:00:23.5]}
60... Bc8 {[%clk 0:00:09.4]} 61. Rb1 {[%clk 0:00:12.3]} 61... Rc2 {[%clk
0:00:08.2]} 62. Rb5+ {[%clk 0:00:09.6]} 62... Kg6 {[%clk 0:00:09.2]} 63. Rb6+
{[%clk 0:00:09.6]} 63... Kf7 {[%clk 0:00:10.3]} 64. Rh6 {[%clk 0:00:10.9]} 64...
Ke7 {[%clk 0:00:10.2]} 65. Kg3 {[%clk 0:00:04.4]} 65... Rxc7 {[%clk 0:00:09.8]}
66. Rh7+ {[%clk 0:00:05.4]} 66... Kd6 {[%clk 0:00:11]} 67. Rh6+ {[%clk
0:00:07.1]} 67... Be6 {[%clk 0:00:12.2]} 0-1

[Event "*** Titled Tuesday 3|2 Blitz"]
[Site "Chess.com"]
[Date "2015.05.05"]
[Round "6"]
[White "jefferyx"]
[Black "chessloveyou"]
[Result "1-0"]
[WhiteElo "2336"]
[BlackElo "2101"]
[TimeControl "180+2"]
[EndTime "12:14:16 PDT"]
[Termination "jefferyx won by checkmate"]

1. b4 {[%clk 0:03:01.9]} 1... Nf6 {[%clk 0:03:01.9]} 2. Bb2 {[%clk 0:03:03.3]}
2... d5 {[%clk 0:03:03.1]} 3. e3 {[%clk 0:03:04.2]} 3... c6 {[%clk 0:03:03.8]}
4. Be2 {[%clk 0:03:05.1]} 4... Nbd7 {[%clk 0:03:04.9]} 5. f4 {[%clk 0:03:04.5]}
5... g6 {[%clk 0:03:03.8]} 6. g4 {[%clk 0:03:05.3]} 6... Bg7 {[%clk 0:03:05.3]}
7. g5 {[%clk 0:03:06.6]} 7... Nh5 {[%clk 0:03:02.9]} 8. Nc3 {[%clk 0:03:07.6]}
8... e5 {[%clk 0:03:00.8]} 9. Bxh5 {[%clk 0:03:08.1]} 9... gxh5 {[%clk
0:03:01.3]} 10. Nce2 {[%clk 0:03:09.3]} 10... O-O {[%clk 0:02:58.2]} 11. Ng3
{[%clk 0:03:07.3]} 11... exf4 {[%clk 0:02:55.4]} 12. Bxg7 {[%clk 0:03:09.2]}
12... Kxg7 {[%clk 0:02:55]} 13. Nxh5+ {[%clk 0:03:11.1]} 13... Kg8 {[%clk
0:02:56.3]} 14. Nxf4 {[%clk 0:03:13]} 14... Ne5 {[%clk 0:02:57.6]} 15. Qh5
{[%clk 0:03:05.6]} 15... Bg4 {[%clk 0:02:57.9]} 16. Qh6 {[%clk 0:03:06]} 16...
d4 {[%clk 0:02:21.1]} 17. e4 {[%clk 0:02:54.8]} 17... d3 {[%clk 0:02:17.9]} 18.
h3 {[%clk 0:02:54.6]} 18... Bf3 {[%clk 0:01:35.3]} 19. Nxf3 {[%clk 0:02:49.7]}
19... Nxf3+ {[%clk 0:01:36.3]} 20. Kf2 {[%clk 0:02:51.6]} 20... Nxd2 {[%clk
0:01:36.5]} 21. cxd3 {[%clk 0:02:39]} 21... Qd4+ {[%clk 0:01:17.5]} 22. Kg2
{[%clk 0:02:30]} 22... Qe3 {[%clk 0:01:04.1]} 23. Raf1 {[%clk 0:02:27.6]} 23...
Rae8 {[%clk 0:00:58.7]} 24. Nh5 {[%clk 0:02:25.8]} 24... Re6 {[%clk 0:00:53.9]}
25. Qg7# {[%clk 0:02:26.2]} 1-0

[Event "*** Titled Tuesday 3|2 Blitz"]
[Site "Chess.com"]
[Date "2015.05.05"]
[Round "6"]
[White "hellokostya"]
[Black "IMRosen"]
[Result "1-0"]
[WhiteElo "2284"]
[BlackElo "2214"]
[TimeControl "180+2"]
[EndTime "12:15:05 PDT"]
[Termination "hellokostya won by resignation"]

1. d4 {[%clk 0:03:01.9]} 1... c5 {[%clk 0:02:58.5]} 2. d5 {[%clk 0:02:56.2]}
2... f5 {[%clk 0:02:58.5]} 3. e4 {[%clk 0:02:52.7]} 3... fxe4 {[%clk 0:02:59.2]}
4. Nc3 {[%clk 0:02:53.2]} 4... Nf6 {[%clk 0:03:00.2]} 5. g4 {[%clk 0:02:54.2]}
5... g6 {[%clk 0:03:01]} 6. g5 {[%clk 0:02:49.2]} 6... Nh5 {[%clk 0:02:58.7]} 7.
Be2 {[%clk 0:02:47.1]} 7... Qa5 {[%clk 0:02:36.9]} 8. Bxh5 {[%clk 0:02:42.7]}
8... gxh5 {[%clk 0:02:38.1]} 9. Qxh5+ {[%clk 0:02:44]} 9... Kd8 {[%clk
0:02:39.6]} 10. Bd2 {[%clk 0:02:39.3]} 10... Bg7 {[%clk 0:02:26.4]} 11. Qf7
{[%clk 0:02:20]} 11... Bd4 {[%clk 0:02:03.6]} 12. d6 {[%clk 0:02:04.3]} 12...
exd6 {[%clk 0:00:44.9]} 13. Nd5 {[%clk 0:02:03.4]} 13... Qxd2+ {[%clk
0:00:46.1]} 14. Kxd2 {[%clk 0:02:03.2]} 14... Nc6 {[%clk 0:00:45.4]} 15. c3
{[%clk 0:01:53.9]} 15... Be5 {[%clk 0:00:44.6]} 16. f4 {[%clk 0:01:52.4]} 16...
exf3 {[%clk 0:00:41.7]} 17. Nxf3 {[%clk 0:01:52.8]} 17... Re8 {[%clk 0:00:26.2]}
18. Nxe5 {[%clk 0:01:52.4]} 18... dxe5 {[%clk 0:00:27.1]} 19. Qf6+ {[%clk
0:01:48.4]} 19... Ne7 {[%clk 0:00:27.2]} 20. Rae1 {[%clk 0:01:44.3]} 1-0

[Event "*** Titled Tuesday 3|2 Blitz"]
[Site "Chess.com"]
[Date "2015.05.05"]
[Round "6"]
[White "AungTZ"]
[Black "brauliocuarta"]
[Result "1-0"]
[WhiteElo "2151"]
[BlackElo "2063"]
[TimeControl "180+2"]
[EndTime "12:15:18 PDT"]
[Termination "AungTZ won by resignation"]

1. e4 {[%clk 0:03:01.9]} 1... c5 {[%clk 0:02:58.6]} 2. Nf3 {[%clk 0:03:02.3]}
2... e6 {[%clk 0:02:59.8]} 3. d4 {[%clk 0:03:02.4]} 3... cxd4 {[%clk 0:03:00.9]}
4. Nxd4 {[%clk 0:03:04]} 4... a6 {[%clk 0:03:02.3]} 5. Nc3 {[%clk 0:03:05.1]}
5... Qc7 {[%clk 0:03:03]} 6. Be3 {[%clk 0:03:06.6]} 6... Bb4 {[%clk 0:03:02.3]}
7. Bd3 {[%clk 0:02:54.7]} 7... Bxc3+ {[%clk 0:02:51]} 8. bxc3 {[%clk 0:02:55.5]}
8... Qxc3+ {[%clk 0:02:51.8]} 9. Kf1 {[%clk 0:02:57.2]} 9... Nf6 {[%clk
0:02:49]} 10. Rb1 {[%clk 0:02:57.3]} 10... O-O {[%clk 0:02:46.7]} 11. Rb3 {[%clk
0:02:51.3]} 11... Qc7 {[%clk 0:02:45.9]} 12. f4 {[%clk 0:02:51.5]} 12... d6
{[%clk 0:02:42.1]} 13. g4 {[%clk 0:02:43]} 13... b5 {[%clk 0:02:39.4]} 14. g5
{[%clk 0:02:42.8]} 14... Nfd7 {[%clk 0:02:39.7]} 15. h4 {[%clk 0:02:40.1]} 15...
Bb7 {[%clk 0:02:40.2]} 16. h5 {[%clk 0:02:40.6]} 16... Nc5 {[%clk 0:02:37.4]}
17. g6 {[%clk 0:02:32.2]} 17... Nxb3 {[%clk 0:02:35.1]} 18. gxh7+ {[%clk
0:02:29.2]} 18... Kh8 {[%clk 0:02:35.4]} 19. axb3 {[%clk 0:02:29.7]} 19... Nc6
{[%clk 0:02:25]} 20. f5 {[%clk 0:02:26]} 20... Nxd4 {[%clk 0:02:23.2]} 21. Bxd4
{[%clk 0:02:26.6]} 21... e5 {[%clk 0:02:24.3]} 22. f6 {[%clk 0:02:09.7]} 22...
exd4 {[%clk 0:02:12.9]} 23. Qg4 {[%clk 0:02:04.6]} 23... g6 {[%clk 0:01:41.1]}
24. Rg1 {[%clk 0:02:02.8]} 24... Rae8 {[%clk 0:01:24.8]} 25. e5 {[%clk
0:01:50.2]} 25... Rxe5 {[%clk 0:01:22.5]} 26. hxg6 {[%clk 0:01:51.2]} 26... fxg6
{[%clk 0:01:22.3]} 27. Qxg6 {[%clk 0:01:52.2]} 27... Qe7 {[%clk 0:01:04.1]} 28.
Qg8+ {[%clk 0:01:51.4]} 1-0

[Event "*** Titled Tuesday 3|2 Blitz"]
[Site "Chess.com"]
[Date "2015.05.05"]
[Round "6"]
[White "Tirantes"]
[Black "Schemato"]
[Result "1-0"]
[WhiteElo "2137"]
[BlackElo "2099"]
[TimeControl "180+2"]
[EndTime "12:15:26 PDT"]
[Termination "Tirantes won by checkmate"]

1. c4 {[%clk 0:03:01.9]} 1... c5 {[%clk 0:02:52.6]} 2. Nf3 {[%clk 0:03:00.5]}
2... Nc6 {[%clk 0:02:49.9]} 3. Nc3 {[%clk 0:03:00.6]} 3... g6 {[%clk 0:02:50.5]}
4. e3 {[%clk 0:03:00.5]} 4... Nf6 {[%clk 0:02:50.3]} 5. d4 {[%clk 0:03:00.1]}
5... cxd4 {[%clk 0:02:50.9]} 6. exd4 {[%clk 0:03:00.6]} 6... d5 {[%clk 0:02:52]}
7. cxd5 {[%clk 0:03:00.4]} 7... Nxd5 {[%clk 0:02:48.1]} 8. Qb3 {[%clk
0:02:59.9]} 8... Nxc3 {[%clk 0:02:41.2]} 9. Bc4 {[%clk 0:02:59]} 9... e6 {[%clk
0:02:34.9]} 10. bxc3 {[%clk 0:02:59.1]} 10... Bg7 {[%clk 0:02:30.8]} 11. Ba3
{[%clk 0:02:59.1]} 11... Na5 {[%clk 0:02:19.7]} 12. Bb5+ {[%clk 0:02:57.7]}
12... Bd7 {[%clk 0:02:20.2]} 13. Qa4 {[%clk 0:02:52.9]} 13... b6 {[%clk
0:02:09]} 14. O-O {[%clk 0:02:48]} 14... Bxb5 {[%clk 0:02:08.8]} 15. Qxb5+
{[%clk 0:02:46.6]} 15... Qd7 {[%clk 0:02:10.2]} 16. Qe2 {[%clk 0:02:38.1]} 16...
Rc8 {[%clk 0:02:07.2]} 17. Ne5 {[%clk 0:02:16]} 17... Qc7 {[%clk 0:01:29.5]} 18.
Rac1 {[%clk 0:01:58.8]} 18... Nc4 {[%clk 0:01:28.4]} 19. Nxc4 {[%clk 0:01:39.4]}
19... Qxc4 {[%clk 0:01:28.1]} 20. Qf3 {[%clk 0:01:35.5]} 20... Qa4 {[%clk
0:00:57.7]} 21. Qb7 {[%clk 0:01:01.7]} 21... Qc6 {[%clk 0:00:57.6]} 22. Qe7#
{[%clk 0:00:58.7]} 1-0

[Event "*** Titled Tuesday 3|2 Blitz"]
[Site "Chess.com"]
[Date "2015.05.05"]
[Round "6"]
[White "Cryptochess"]
[Black "Tilicheev_Viacheslav"]
[Result "0-1"]
[WhiteElo "2394"]
[BlackElo "2445"]
[TimeControl "180+2"]
[EndTime "12:15:43 PDT"]
[Termination "Tilicheev_Viacheslav won by resignation"]

1. e4 {[%clk 0:03:01.9]} 1... c5 {[%clk 0:02:57.9]} 2. Nc3 {[%clk 0:03:01.7]}
2... Nc6 {[%clk 0:02:58.6]} 3. g3 {[%clk 0:03:03.2]} 3... g6 {[%clk 0:02:58.3]}
4. Bg2 {[%clk 0:03:02.9]} 4... Bg7 {[%clk 0:02:59.3]} 5. d3 {[%clk 0:03:02]}
5... e6 {[%clk 0:02:59.1]} 6. Be3 {[%clk 0:03:03]} 6... d6 {[%clk 0:03:00.2]} 7.
Qd2 {[%clk 0:03:03.1]} 7... h6 {[%clk 0:02:58.7]} 8. Nge2 {[%clk 0:03:03.6]}
8... Nge7 {[%clk 0:02:58.4]} 9. O-O {[%clk 0:03:05]} 9... Nd4 {[%clk 0:02:49.5]}
10. Bxd4 {[%clk 0:02:21.3]} 10... cxd4 {[%clk 0:02:46.9]} 11. Nb5 {[%clk
0:02:22.8]} 11... Nc6 {[%clk 0:02:44]} 12. c4 {[%clk 0:02:13.3]} 12... dxc3
{[%clk 0:02:45.9]} 13. Nbxc3 {[%clk 0:02:07.9]} 13... O-O {[%clk 0:02:42.2]} 14.
d4 {[%clk 0:02:09.2]} 14... Qb6 {[%clk 0:02:37.9]} 15. Rfd1 {[%clk 0:02:06.2]}
15... Bd7 {[%clk 0:02:34.6]} 16. Rac1 {[%clk 0:02:06.6]} 16... Rac8 {[%clk
0:02:32.7]} 17. Kh1 {[%clk 0:01:47.1]} 17... Rc7 {[%clk 0:02:25.1]} 18. Qf4
{[%clk 0:01:17.1]} 18... Nxd4 {[%clk 0:02:20.1]} 19. Nxd4 {[%clk 0:01:12]} 19...
Bxd4 {[%clk 0:02:17.6]} 20. Qxh6 {[%clk 0:01:10.6]} 20... Bxf2 {[%clk
0:02:15.3]} 21. Qh4 {[%clk 0:00:56.6]} 21... Qxb2 {[%clk 0:02:09.6]} 22. Qf6
{[%clk 0:00:50.3]} 22... Be3 {[%clk 0:02:08.8]} 23. Nd5 {[%clk 0:00:44.4]} 23...
Rxc1 {[%clk 0:01:56.9]} 24. Ne7+ {[%clk 0:00:16.6]} 24... Kh7 {[%clk 0:01:56.7]}
25. Qxb2 {[%clk 0:00:12.7]} 25... Rxd1+ {[%clk 0:01:56.7]} 26. Bf1 {[%clk
0:00:14.6]} 26... Rxf1+ {[%clk 0:01:54.8]} 27. Kg2 {[%clk 0:00:16.2]} 27... Rf2+
{[%clk 0:01:56.3]} 0-1

[Event "*** Titled Tuesday 3|2 Blitz"]
[Site "Chess.com"]
[Date "2015.05.05"]
[Round "6"]
[White "amaidel"]
[Black "Lupul_Cenusiu"]
[Result "0-1"]
[WhiteElo "2285"]
[BlackElo "2322"]
[TimeControl "180+2"]
[EndTime "12:15:44 PDT"]
[Termination "Lupul_Cenusiu won by resignation"]

1. e4 {[%clk 0:03:01.9]} 1... d6 {[%clk 0:03:00]} 2. d4 {[%clk 0:03:02.7]} 2...
g6 {[%clk 0:03:01.2]} 3. Nc3 {[%clk 0:03:03.9]} 3... Bg7 {[%clk 0:03:02.7]} 4.
f4 {[%clk 0:03:05.2]} 4... a6 {[%clk 0:03:03.5]} 5. Nf3 {[%clk 0:03:05.1]} 5...
b5 {[%clk 0:03:04.6]} 6. Be3 {[%clk 0:03:05.6]} 6... Bb7 {[%clk 0:03:05.7]} 7.
a3 {[%clk 0:03:05.8]} 7... Nd7 {[%clk 0:03:05.9]} 8. e5 {[%clk 0:03:02.8]} 8...
Nh6 {[%clk 0:03:04.5]} 9. Be2 {[%clk 0:03:02]} 9... O-O {[%clk 0:03:03.8]} 10.
O-O {[%clk 0:02:59.7]} 10... c5 {[%clk 0:03:01.3]} 11. dxc5 {[%clk 0:02:49]}
11... Nf5 {[%clk 0:03:00.8]} 12. Bf2 {[%clk 0:02:45.1]} 12... dxe5 {[%clk
0:03:01.8]} 13. fxe5 {[%clk 0:02:34.6]} 13... Nxe5 {[%clk 0:03:02.3]} 14. Nxe5
{[%clk 0:02:28.6]} 14... Bxe5 {[%clk 0:03:03]} 15. Qe1 {[%clk 0:02:25.2]} 15...
Qc7 {[%clk 0:03:01]} 16. h3 {[%clk 0:02:15.2]} 16... Bh2+ {[%clk 0:02:51.1]} 17.
Kh1 {[%clk 0:02:15.7]} 17... Ng3+ {[%clk 0:02:51.5]} 18. Bxg3 {[%clk 0:02:16.3]}
18... Bxg3 {[%clk 0:02:52.1]} 19. Qd2 {[%clk 0:02:11.4]} 19... Qxc5 {[%clk
0:02:52.9]} 20. Bf3 {[%clk 0:02:12.2]} 20... Bxf3 {[%clk 0:02:48.3]} 21. Rxf3
{[%clk 0:02:12.7]} 21... Bc7 {[%clk 0:02:47.6]} 22. Ne4 {[%clk 0:02:11.6]} 22...
Qe5 {[%clk 0:02:45.8]} 23. Ng3 {[%clk 0:01:57.7]} 23... Rad8 {[%clk 0:02:45.6]}
24. Qc3 {[%clk 0:01:55.6]} 24... Qxc3 {[%clk 0:02:43.8]} 25. Rxc3 {[%clk
0:01:55.9]} 25... Be5 {[%clk 0:02:43.8]} 26. Rb3 {[%clk 0:01:56.6]} 26... Rd2
{[%clk 0:02:39.8]} 27. Re1 {[%clk 0:01:29.7]} 27... f6 {[%clk 0:02:40.4]} 28.
Re2 {[%clk 0:01:06.5]} 28... Rfd8 {[%clk 0:02:40.1]} 29. Kg1 {[%clk 0:00:46.5]}
29... Bxg3 {[%clk 0:02:34.6]} 30. Rxd2 {[%clk 0:00:47]} 30... Rxd2 {[%clk
0:02:33.9]} 31. Rxg3 {[%clk 0:00:47.8]} 31... Rxc2 {[%clk 0:02:35.1]} 32. b4
{[%clk 0:00:48.1]} 32... Ra2 {[%clk 0:02:34.4]} 33. Rc3 {[%clk 0:00:48.4]} 33...
Kf7 {[%clk 0:02:35.6]} 34. Kf1 {[%clk 0:00:48.8]} 34... f5 {[%clk 0:02:32.9]}
35. Re3 {[%clk 0:00:47]} 35... Kf6 {[%clk 0:02:32.8]} 36. g4 {[%clk 0:00:47.6]}
36... h5 {[%clk 0:02:31.9]} 37. gxh5 {[%clk 0:00:44.1]} 37... gxh5 {[%clk
0:02:32]} 38. Rc3 {[%clk 0:00:44.9]} 38... e6 {[%clk 0:02:32.6]} 39. Kg1 {[%clk
0:00:44.7]} 39... f4 {[%clk 0:02:29.8]} 40. Kf1 {[%clk 0:00:45.1]} 40... Kf5
{[%clk 0:02:30]} 0-1

[Event "*** Titled Tuesday 3|2 Blitz"]
[Site "Chess.com"]
[Date "2015.05.05"]
[Round "6"]
[White "PowerThinking2650"]
[Black "Mvpag"]
[Result "1-0"]
[WhiteElo "2067"]
[BlackElo "1938"]
[TimeControl "180+2"]
[EndTime "12:16:02 PDT"]
[Termination "PowerThinking2650 won by resignation"]

1. e4 {[%clk 0:02:58]} 1... e5 {[%clk 0:02:47.3]} 2. Nf3 {[%clk 0:02:58.1]} 2...
Nc6 {[%clk 0:02:47.9]} 3. Bc4 {[%clk 0:02:58.6]} 3... d6 {[%clk 0:02:48.4]} 4.
d4 {[%clk 0:02:54]} 4... exd4 {[%clk 0:02:48.7]} 5. Nxd4 {[%clk 0:02:54.3]} 5...
Be7 {[%clk 0:02:49.7]} 6. Nxc6 {[%clk 0:02:44.5]} 6... bxc6 {[%clk 0:02:50.2]}
7. Qh5 {[%clk 0:02:35.7]} 7... g6 {[%clk 0:02:41]} 8. Qf3 {[%clk 0:02:36]} 8...
Nf6 {[%clk 0:02:37.8]} 9. Bh6 {[%clk 0:02:27]} 9... Bg4 {[%clk 0:02:35.2]} 10.
Qf4 {[%clk 0:02:24.5]} 10... Qd7 {[%clk 0:02:25.1]} 11. Bg7 {[%clk 0:02:19.3]}
11... d5 {[%clk 0:01:40.7]} 12. Be2 {[%clk 0:01:43.2]} 12... Nh5 {[%clk
0:01:32]} 13. Bxg4 {[%clk 0:01:30.5]} 13... Nxf4 {[%clk 0:01:29.7]} 14. Bxd7+
{[%clk 0:01:30.7]} 14... Kxd7 {[%clk 0:01:30.9]} 15. Bxh8 {[%clk 0:01:31.5]}
15... Rxh8 {[%clk 0:01:31.6]} 16. g3 {[%clk 0:01:32.5]} 16... Ne6 {[%clk
0:01:21.3]} 17. Nd2 {[%clk 0:01:32.2]} 17... Rb8 {[%clk 0:01:05.7]} 18. O-O-O
{[%clk 0:01:32.3]} 18... Bf6 {[%clk 0:01:00.7]} 19. c3 {[%clk 0:01:31.8]} 19...
Nc5 {[%clk 0:00:54.9]} 20. Kc2 {[%clk 0:01:31.4]} 20... Na4 {[%clk 0:00:49.6]}
21. Nb3 {[%clk 0:01:31.3]} 21... Ke6 {[%clk 0:00:42]} 22. exd5+ {[%clk
0:01:31.2]} 22... cxd5 {[%clk 0:00:43]} 23. Rhe1+ {[%clk 0:01:32]} 23... Kf5
{[%clk 0:00:40.5]} 24. Rxd5+ {[%clk 0:01:31.8]} 24... Kg4 {[%clk 0:00:39.7]} 25.
Re4+ {[%clk 0:01:11.2]} 25... Kf3 {[%clk 0:00:38.6]} 26. Rxa4 {[%clk 0:01:10.4]}
26... Kxf2 {[%clk 0:00:37.6]} 27. Rf4+ {[%clk 0:01:10.6]} 1-0

[Event "*** Titled Tuesday 3|2 Blitz"]
[Site "Chess.com"]
[Date "2015.05.05"]
[Round "6"]
[White "bugsbunny444"]
[Black "desxmchna"]
[Result "1-0"]
[WhiteElo "2305"]
[BlackElo "2154"]
[TimeControl "180+2"]
[EndTime "12:16:24 PDT"]
[Termination "bugsbunny444 won by resignation"]

1. Nf3 {[%clk 0:03:01.9]} 1... Nf6 {[%clk 0:03:00]} 2. c4 {[%clk 0:03:03]} 2...
g6 {[%clk 0:03:00.9]} 3. b4 {[%clk 0:03:02.5]} 3... Bg7 {[%clk 0:02:59.7]} 4.
Bb2 {[%clk 0:03:04.1]} 4... c5 {[%clk 0:02:58.3]} 5. bxc5 {[%clk 0:03:04.4]}
5... O-O {[%clk 0:02:57]} 6. d4 {[%clk 0:03:00.5]} 6... b6 {[%clk 0:02:54]} 7.
cxb6 {[%clk 0:02:59.3]} 7... Qxb6 {[%clk 0:02:54.6]} 8. Qb3 {[%clk 0:02:58]}
8... Qa5+ {[%clk 0:02:54.6]} 9. Nbd2 {[%clk 0:02:45.7]} 9... Nc6 {[%clk
0:02:54.4]} 10. Bc3 {[%clk 0:02:39.1]} 10... Qf5 {[%clk 0:02:54.1]} 11. Qb1
{[%clk 0:01:50.1]} 11... d5 {[%clk 0:02:55.1]} 12. Qxf5 {[%clk 0:01:47.9]} 12...
Bxf5 {[%clk 0:02:56.2]} 13. e3 {[%clk 0:01:42.3]} 13... Rfc8 {[%clk 0:02:47.6]}
14. c5 {[%clk 0:01:27]} 14... e5 {[%clk 0:02:32.8]} 15. Ba6 {[%clk 0:01:15.5]}
15... Rc7 {[%clk 0:02:34.2]} 16. O-O {[%clk 0:01:09.4]} 16... Nd7 {[%clk
0:02:24.5]} 17. Rfc1 {[%clk 0:01:05.5]} 17... exd4 {[%clk 0:02:19.3]} 18. exd4
{[%clk 0:01:05.6]} 18... Bh6 {[%clk 0:02:15.8]} 19. h3 {[%clk 0:01:00.4]} 19...
Rb8 {[%clk 0:02:05.2]} 20. g4 {[%clk 0:00:56.1]} 20... Be6 {[%clk 0:01:51.2]}
21. Rab1 {[%clk 0:00:51.9]} 21... Bf4 {[%clk 0:01:46.1]} 22. Bd3 {[%clk
0:00:34.7]} 22... h5 {[%clk 0:01:38.1]} 23. gxh5 {[%clk 0:00:35.5]} 23... gxh5
{[%clk 0:01:37.7]} 24. Kg2 {[%clk 0:00:36.7]} 24... Kf8 {[%clk 0:01:27.4]} 25.
Rxb8+ {[%clk 0:00:31.9]} 25... Ndxb8 {[%clk 0:01:28.7]} 26. Rb1 {[%clk
0:00:31.7]} 26... f6 {[%clk 0:01:28.4]} 27. Nf1 {[%clk 0:00:29.1]} 27... Rg7+
{[%clk 0:01:27.5]} 28. Ng3 {[%clk 0:00:22.2]} 28... h4 {[%clk 0:01:28.3]} 29.
Nxh4 {[%clk 0:00:22.4]} 29... Nd7 {[%clk 0:01:21.8]} 30. Ng6+ {[%clk 0:00:23]}
1-0